bitfinex/quotes_BTCUSD_20240828
["timestamp","ask_amount","ask_price","bid_price","bid_amount"]
[1724831212868,1.542532,58994.0,58993.0,0.000856]
[1724831213106,2.63752397,58994.0,58993.0,0.000856]
[1724831213565,2.68735847,58994.0,58993.0,0.000856]
[1724831213788,2.68735847,58994.0,58987.0,4e-05]
[1724831213789,1.746182,58988.0,58987.0,4e-05]
[1724831214016,2.593724,58988.0,58987.0,4e-05]
[1724831214269,2.593724,58988.0,58964.0,0.90610786]
[1724831214270,2.87340162,58988.0,58964.0,0.90610786]
[1724831214486,2.87340162,58988.0,58964.0,0.50540786]
[1724831214487,0.1843,58967.0,58964.0,0.50540786]
[1724831214713,0.04986112,58981.0,58964.0,0.50540786]
[1724831214714,0.50849,58966.0,58964.0,0.50540786]
[1724831214930,0.50849,58966.0,58962.0,0.169639]
[1724831214931,0.50849,58966.0,58963.0,0.169596]
[1724831215146,0.50849,58966.0,58964.0,0.169594]
[1724831215633,0.50849,58966.0,58962.0,4e-05]
[1724831215859,0.50849,58966.0,58963.0,0.169597]
[1724831217040,0.50849,58966.0,58962.0,4e-05]
[1724831217041,0.53508253,58966.0,58962.0,4e-05]
[1724831217273,0.70467153,58966.0,58962.0,0.12304]
[1724831217512,0.53508253,58966.0,58962.0,0.12304]
[1724831217736,0.00561822,58965.0,58963.0,0.169596]
[1724831218226,0.50849,58964.0,58963.0,0.847986]
[1724831218435,0.50849,58964.0,58963.0,1.374486]
[1724831218856,0.51410822,58964.0,58963.0,1.374486]
[1724831219065,0.50849,58964.0,58963.0,1.374486]
[1724831219305,0.51410822,58964.0,58963.0,1.374486]
[1724831220002,0.51410822,58964.0,58963.0,1.566186]
[1724831220452,0.51410822,58964.0,58963.0,1.905381]
[1724831222644,0.51390421,58964.0,58963.0,1.905381]
[1724831223342,0.54049469,58964.0,58963.0,1.905381]
[1724831224000,0.32839899,58964.0,58963.0,1.905381]
[1724831224234,0.339044,58990.0,58963.0,1.905381]
[1724831224235,0.07483437,58999.0,58990.0,0.3835]
[1724831224670,0.23778958,59002.0,58991.0,0.10338982]
[1724831224671,0.1879,59002.0,58991.0,0.10338982]
[1724831224685,0.00543095,58998.0,58991.0,0.292515]
[1724831224903,0.00543095,58998.0,58991.0,0.1]
[1724831225136,0.00543095,58997.0,58992.0,0.169514]
[1724831225375,0.1879,59002.0,58993.0,0.26951]
[1724831225621,0.357386,59002.0,58993.0,0.26951]
[1724831225859,0.00543095,59001.0,58994.0,0.169507]
[1724831226338,0.00543095,59001.0,58993.0,0.1]
[1724831226574,0.34440895,59001.0,58991.0,0.100817]
[1724831226813,0.34440895,59001.0,58991.0,0.000817]
[1724831226814,0.169495,58999.0,58991.0,0.000817]
[1724831227084,0.169495,58999.0,58992.0,0.1]
[1724831227319,0.00548461,58998.0,58991.0,0.170333]
[1724831227554,0.00548461,58998.0,58992.0,0.1]
[1724831228010,0.169502,58997.0,58991.0,0.000817]
[1724831228462,0.00548461,58996.0,58991.0,0.000817]
[1724831228671,0.169511,58994.0,58991.0,0.000817]
[1724831228898,0.169512,58993.0,58991.0,0.000817]
[1724831229114,0.00548461,58993.0,58991.0,0.000817]
[1724831229331,0.16949,59001.0,58991.0,0.123817]
[1724831229572,0.16949,59001.0,58991.0,0.100817]
[1724831229573,0.17499861,58992.0,58991.0,0.100817]
[1724831229808,0.339014,58995.0,58991.0,0.100817]
[1724831229809,0.1922,58998.0,58991.0,0.100817]
[1724831230021,0.90292761,58992.0,58991.0,0.000817]
[1724831230251,0.897443,58992.0,58991.0,0.000817]
[1724831230488,1.43415661,58992.0,58991.0,0.000817]
[1724831230717,1.09512761,58992.0,58991.0,0.000817]
[1724831231611,1.43415661,58992.0,58991.0,0.000817]
[1724831232289,1.09512761,58992.0,58991.0,0.000817]
[1724831232739,0.75609861,58992.0,58991.0,0.000817]
[1724831233860,1.09512761,58992.0,58991.0,0.000817]
[1724831234076,1.60367761,58992.0,58991.0,0.000817]
[1724831235469,1.63026235,58992.0,58991.0,0.000817]
[1724831235933,2.30832035,58992.0,58991.0,0.000817]
[1724831236162,0.339063,58986.0,58979.0,0.50540786]
[1724831236379,0.169548,58981.0,58979.0,0.50540786]
[1724831236599,0.50855,58980.0,58973.0,0.1]
[1724831236821,0.68975,58980.0,58972.0,0.16957]
[1724831237050,0.00545892,58979.0,58971.0,0.566974]
[1724831237333,0.00545892,58979.0,58964.0,0.4705]
[1724831237334,0.4065,58977.0,58964.0,0.4705]
[1724831237558,0.4065,58977.0,58966.0,0.169589]
[1724831237559,0.169573,58972.0,58966.0,0.169589]
[1724831237790,0.50855,58971.0,58966.0,0.169589]
[1724831238038,0.50855,58971.0,58963.0,0.409]
[1724831238274,0.50855,58971.0,58962.0,4e-05]
[1724831238275,0.169587,58967.0,58962.0,4e-05]
[1724831238502,0.169589,58966.0,58962.0,4e-05]
[1724831238965,0.339162,58969.0,58962.0,4e-05]
[1724831238966,0.00545892,58965.0,58962.0,4e-05]
[1724831239178,0.51400892,58965.0,58962.0,4e-05]
[1724831239396,0.50855,58965.0,58962.0,4e-05]
[1724831239618,0.00545892,58964.0,58962.0,0.26964]
[1724831239894,0.338953,58963.0,58962.0,4e-05]
[1724831240121,0.338953,58963.0,58962.0,0.508841]
[1724831240360,0.34525176,58963.0,58962.0,0.26964]
[1724831240826,0.34525176,58963.0,58962.0,0.608841]
[1724831241498,0.34525176,58963.0,58962.0,0.948042]
[1724831241499,0.338913,58963.0,58962.0,0.948042]
[1724831241713,0.338913,58963.0,58962.0,1.382142]
[1724831241934,0.338913,58963.0,58962.0,1.919543]
[1724831244394,0.338913,58963.0,58962.0,1.819543]
[1724831244633,0.338913,58963.0,58962.0,1.919543]
[1724831245309,0.338913,58963.0,58962.0,2.258744]
[1724831245519,0.338913,58963.0,58962.0,1.919543]
[1724831245738,0.338913,58963.0,58962.0,1.721343]
[1724831246375,0.338913,58963.0,58962.0,1.721383]
[1724831247875,0.338913,58963.0,58962.0,1.621383]
[1724831248081,0.338913,58963.0,58962.0,1.721383]
[1724831249220,0.338913,58963.0,58962.0,0.68078]
[1724831249426,0.338913,58963.0,58962.0,8e-05]
[1724831249643,0.50851,58963.0,58962.0,8e-05]
[1724831249847,0.51396892,58963.0,58962.0,8e-05]
[1724831250297,0.34437192,58963.0,58962.0,8e-05]
[1724831251428,0.34437192,58963.0,58962.0,0.000898]
[1724831252125,0.34437192,58963.0,58962.0,0.170498]
[1724831252346,0.34437192,58963.0,58962.0,0.509699]
[1724831253715,0.34437192,58963.0,58962.0,0.8489]
[1724831253963,0.338913,58963.0,58962.0,0.8489]
[1724831254197,0.36550681,58963.0,58962.0,0.8489]
[1724831254436,0.37091307,58963.0,58962.0,0.8489]
[1724831255354,0.37091307,58963.0,58962.0,1.2486]
[1724831255801,0.37091307,58963.0,58962.0,1.432]
[1724831256027,0.37091307,58963.0,58962.0,0.8489]
[1724831256244,0.37091307,58963.0,58962.0,0.509699]
[1724831256727,0.55711307,58963.0,58962.0,0.000898]
[1724831257175,0.55711307,58963.0,58962.0,0.170498]
[1724831257620,0.37091307,58963.0,58962.0,0.509699]
[1724831258079,0.37091307,58963.0,58962.0,1.2262]
[1724831258751,0.34431926,58963.0,58962.0,1.2262]
[1724831259422,0.34431926,58963.0,58962.0,0.8489]
[1724831260535,0.34431926,58963.0,58962.0,0.170498]
[1724831260787,0.34431926,58963.0,58962.0,0.509699]
[1724831261678,0.34431926,58963.0,58962.0,0.8489]
[1724831264660,0.34431926,58963.0,58962.0,0.509699]
[1724831264900,0.34431926,58963.0,58962.0,0.000898]
[1724831264901,0.73001926,58963.0,58962.0,0.000898]
[1724831265125,0.75751317,58963.0,58962.0,0.000898]
[1724831268046,0.92711017,58963.0,58962.0,0.000898]
[1724831268271,0.75751317,58963.0,58962.0,0.000898]
[1724831268942,0.92711017,58963.0,58962.0,0.000898]
[1724831269159,1.79380017,58963.0,58962.0,0.000898]
[1724831269679,2.1676252,58963.0,58962.0,0.000898]
[1724831269909,2.40673193,58963.0,58962.0,0.000898]
[1724831270132,0.1837,58951.0,58947.0,0.00081701]
[1724831270338,0.169639,58949.0,58947.0,0.00081701]
[1724831270553,0.338913,58948.0,58947.0,0.00081701]
[1724831270981,0.34514926,58948.0,58947.0,0.00081701]
[1724831271197,0.51479026,58948.0,58947.0,0.00081701]
[1724831271434,0.85407226,58948.0,58947.0,0.00081701]
[1724831272098,0.93065804,58948.0,58947.0,0.00081701]
[1724831272337,0.88067379,58948.0,58947.0,0.00081701]
[1724831272551,1.21995579,58948.0,58947.0,0.00081701]
[1724831272771,0.54139179,58948.0,58947.0,0.00081701]
[1724831272992,0.88067379,58948.0,58947.0,0.00081701]
[1724831273456,0.37175079,58948.0,58947.0,0.00081701]
[1724831273684,0.54139179,58948.0,58947.0,0.00081701]
[1724831274593,0.37175079,58948.0,58947.0,0.57736001]
[1724831274833,0.37175079,58948.0,58947.0,0.93964701]
[1724831275068,0.37175079,58948.0,58947.0,1.46263401]
[1724831275311,0.36551453,58948.0,58947.0,1.46263401]
[1724831275525,0.37088366,58948.0,58947.0,1.46263401]
[1724831275750,0.36551453,58948.0,58947.0,1.46263401]
[1724831276219,0.36551453,58948.0,58947.0,0.57736001]
[1724831276651,0.37088366,58948.0,58947.0,0.91664701]
[1724831276876,0.37088366,58948.0,58947.0,1.27893401]
[1724831277134,0.37088366,58948.0,58947.0,1.71822101]
[1724831277360,0.36551453,58948.0,58947.0,1.71822101]
[1724831278724,0.338913,58948.0,58947.0,1.71822101]
[1724831281983,0.36551107,58948.0,58947.0,1.71822101]
[1724831283145,0.36551107,58948.0,58947.0,2.05750801]
[1724831283379,0.36551107,58948.0,58947.0,2.61287741]
[1724831284049,0.338913,58948.0,58947.0,2.61287741]
[1724831284702,0.338913,58948.0,58947.0,1.90712101]
[1724831284935,0.338913,58948.0,58947.0,1.92941907]
[1724831285604,0.3655111,58948.0,58947.0,1.92941907]
[1724831287019,0.3655111,58948.0,58947.0,1.74051907]
[1724831292911,0.338913,58948.0,58947.0,1.74051907]
[1724831293125,0.338913,58948.0,58947.0,2.26790607]
[1724831293347,0.338913,58948.0,58947.0,1.92361907]
[1724831293562,0.338913,58948.0,58947.0,1.74051907]
[1724831294459,0.338913,58948.0,58947.0,1.71822101]
[1724831296140,0.36551141,58948.0,58947.0,1.71822101]
[1724831296371,0.37170202,58948.0,58947.0,1.71822101]
[1724831297854,0.36551141,58948.0,58947.0,1.71822101]
[1724831299883,0.338913,58948.0,58947.0,1.71770443]
[1724831301886,0.338913,58948.0,58947.0,0.10030043]
[1724831302100,0.38902598,58948.0,58947.0,0.50923043]
[1724831302311,0.37257191,58948.0,58947.0,0.10030043]
[1724831302502,0.37257191,58948.0,58947.0,0.26994343]
[1724831302740,0.37257191,58948.0,58947.0,0.10030043]
[1724831302958,0.73941291,58948.0,58947.0,0.10030043]
[1724831303191,0.59636857,58948.0,58947.0,0.00030043]
[1724831303389,0.54625552,58948.0,58947.0,0.00030043]
[1724831303796,0.62142499,58948.0,58947.0,0.00030043]
[1724831303974,0.62141998,58948.0,58947.0,0.00030043]
[1724831304224,0.81545948,58948.0,58947.0,0.00030043]
[1724831304430,0.62142275,58948.0,58947.0,0.00030043]
[1724831304635,0.81609906,58948.0,58947.0,0.00030043]
[1724831304850,0.62141785,58948.0,58947.0,0.00030043]
[1724831305078,0.54625552,58948.0,58947.0,0.00030043]
[1724831305740,0.62142,58948.0,58947.0,0.19294343]
[1724831305966,0.54625552,58948.0,58947.0,0.19294343]
[1724831306190,0.34905552,58948.0,58947.0,1.71550443]
[1724831306408,0.34905552,58948.0,58947.0,1.37621743]
[1724831306616,0.34286784,58948.0,58947.0,1.71550443]
[1724831307064,0.34905552,58948.0,58947.0,1.71550443]
[1724831307281,0.34286784,58948.0,58947.0,1.71550443]
[1724831307984,0.34286784,58948.0,58947.0,1.37621743]
[1724831308416,0.34905552,58948.0,58947.0,1.37621743]
[1724831310169,0.34286784,58948.0,58947.0,0.97151743]
[1724831310374,0.34905552,58948.0,58947.0,0.97151743]
[1724831311469,0.34905552,58948.0,58947.0,0.63223043]
[1724831312541,0.42427068,58948.0,58947.0,0.63223043]
[1724831312987,0.34905552,58948.0,58947.0,0.97151743]
[1724831314812,0.39922424,58948.0,58947.0,0.97151743]
[1724831314991,0.34905552,58948.0,58947.0,0.97151743]
[1724831315237,0.42429831,58948.0,58947.0,0.97151743]
[1724831316559,0.42429831,58948.0,58947.0,0.63223043]
[1724831316968,0.61894633,58948.0,58947.0,0.63223043]
[1724831317446,1.09569199,58948.0,58947.0,0.00030043]
[1724831317671,0.77404566,58948.0,58947.0,0.00030043]
[1724831317898,0.77404566,58948.0,58947.0,0.16994343]
[1724831318545,0.90102853,58948.0,58947.0,0.16994343]
[1724831318787,0.77556335,58948.0,58947.0,0.02330043]
[1724831319004,0.90102853,58948.0,58947.0,0.02330043]
[1724831319482,0.77556335,58948.0,58947.0,0.19294343]
[1724831320355,0.71935394,58948.0,58947.0,0.87151743]
[1724831320574,0.59386335,58948.0,58947.0,0.87151743]
[1724831320799,0.69425835,58948.0,58947.0,0.87151743]
[1724831321018,0.72085908,58948.0,58947.0,0.87151743]
[1724831322086,0.72139665,58948.0,58947.0,0.87151743]
[1724831322338,0.6210285,58948.0,58947.0,0.53223043]
[1724831322558,0.6210285,58948.0,58947.0,0.02330043]
[1724831323491,0.62126248,58948.0,58947.0,0.02330043]
[1724831323705,0.72011859,58948.0,58947.0,0.02330043]
[1724831323935,0.76430275,58948.0,58947.0,0.02330043]
[1724831324349,1.63126675,58948.0,58947.0,0.00430043]
[1724831324600,1.79981839,58948.0,58947.0,0.00430043]
[1724831324821,1.63126675,58948.0,58947.0,0.00430043]
[1724831325238,2.34864746,58948.0,58947.0,0.00430043]
[1724831325455,2.69553357,58948.0,58947.0,0.00430043]
[1724831325689,0.339328,58940.0,58936.0,0.02187726]
[1724831325937,0.29507177,58937.0,58934.0,0.00817]
[1724831326147,0.10031628,58935.0,58934.0,0.177851]
[1724831326375,0.31626717,58935.0,58934.0,0.177851]
[1724831326639,0.67883975,58935.0,58934.0,0.10817]
[1724831326900,0.75415574,58935.0,58934.0,0.03117]
[1724831327102,0.61108502,58935.0,58934.0,0.03117]
[1724831327320,0.61108502,58935.0,58934.0,0.00817]
[1724831327321,0.78940148,58935.0,58934.0,0.00817]
[1724831327543,1.07729475,58935.0,58934.0,0.00817]
[1724831327786,1.0766713,58935.0,58934.0,0.00817]
[1724831328266,0.9069933,58935.0,58934.0,0.00817]
[1724831328510,0.9069933,58935.0,58934.0,0.29718618]
[1724831328511,0.34882872,58935.0,58934.0,0.29718618]
[1724831328747,0.4239992,58935.0,58934.0,0.48986718]
[1724831329642,0.8374992,58935.0,58934.0,0.32018618]
[1724831330051,0.76232872,58935.0,58934.0,0.32018618]
[1724831330277,1.9588728,58935.0,58934.0,0.00817]
[1724831330528,2.3022288,58935.0,58934.0,0.00817]
[1724831330730,2.17691178,58935.0,58934.0,0.00817]
[1724831330944,1.83355578,58935.0,58934.0,0.00817]
[1724831331169,1.7312488,58935.0,58934.0,0.00817]
[1724831332103,2.0706048,58935.0,58934.0,0.00817]
[1724831332343,1.8563647,58935.0,58934.0,0.00817]
[1724831332585,1.85002398,58935.0,58934.0,0.00817]
[1724831332817,1.85302398,58935.0,58934.0,0.00817]
[1724831333024,1.85002398,58935.0,58934.0,0.00817]
[1724831333516,1.73090807,58935.0,58934.0,0.00817]
[1724831333964,2.07026407,58935.0,58934.0,0.00817]
[1724831334201,1.8294167,58935.0,58934.0,0.00817]
[1724831334467,2.04365679,58935.0,58934.0,0.00817]
[1724831335137,2.1687727,58935.0,58934.0,0.00817]
[1724831335344,2.04365679,58935.0,58934.0,0.00817]
[1724831335554,2.18360365,58935.0,58934.0,0.00817]
[1724831335776,2.30871956,58935.0,58934.0,0.00817]
[1724831336246,2.30871956,58935.0,58932.0,0.00817]
[1724831336247,0.509052,58933.0,58932.0,0.00817]
[1724831336459,1.69186535,58933.0,58932.0,0.00817]
[1724831336678,2.17647999,58933.0,58932.0,0.00817]
[1724831336899,2.52113465,58933.0,58932.0,0.00817]
[1724831337127,2.51407315,58933.0,58932.0,0.00817]
[1724831337387,1.187889,58928.0,58927.0,0.01165134]
[1724831337620,2.51358749,58928.0,58927.0,0.01165134]
[1724831338069,2.51879115,58928.0,58927.0,0.01165134]
[1724831338358,2.86318815,58928.0,58927.0,0.01165134]
[1724831338566,1.797591,58923.0,58922.0,0.00818]
[1724831338795,2.70356385,58923.0,58922.0,0.00818]
[1724831339032,2.86637549,58923.0,58922.0,0.00818]
[1724831339550,1.193071,58919.0,58918.0,0.00037871]
[1724831339754,2.33341785,58919.0,58918.0,0.00037871]
[1724831339963,2.82260145,58919.0,58918.0,0.00037871]
[1724831340223,3.13121496,58919.0,58918.0,0.00037871]
[1724831340429,3.13121496,58919.0,58909.0,0.00818]
[1724831340430,1.193232,58911.0,58910.0,0.10033489]
[1724831340642,2.02457885,58911.0,58910.0,0.09178618]
[1724831340901,2.04264664,58911.0,58910.0,0.09178618]
[1724831341158,2.27771368,58911.0,58910.0,0.09178618]
[1724831341359,1.76466704,58911.0,58910.0,0.09146391]
[1724831341579,1.76449232,58911.0,58910.0,0.09146391]
[1724831341799,1.09548109,58911.0,58910.0,0.09146391]
[1724831342019,1.43497609,58911.0,58910.0,0.09146391]
[1724831342234,1.25144695,58911.0,58910.0,0.09146391]
[1724831342468,0.83595195,58911.0,58910.0,0.09146391]
[1724831342679,0.32143909,58911.0,58910.0,0.09146391]
[1724831342896,0.32143909,58911.0,58910.0,0.26121391]
[1724831343122,0.34805955,58911.0,58910.0,0.09146391]
[1724831343368,0.51780655,58911.0,58910.0,0.08347391]
[1724831343821,0.34805955,58911.0,58910.0,0.08347391]
[1724831345383,0.34805955,58911.0,58910.0,0.59272391]
[1724831345638,0.34805955,58911.0,58910.0,0.61572391]
[1724831345856,0.34805955,58911.0,58910.0,1.00652391]
[1724831345962,0.34268346,58911.0,58910.0,1.34602391]
[1724831347685,0.34268346,58911.0,58910.0,1.00652391]
[1724831348111,0.34268346,58911.0,58910.0,1.00734091]
[1724831349202,0.34268346,58911.0,58910.0,1.34684091]
[1724831349420,0.34805955,58911.0,58910.0,1.88344091]
[1724831349633,0.316063,58911.0,58910.0,1.98344091]
[1724831350284,0.316063,58911.0,58910.0,1.97024091]
[1724831352215,0.316063,58911.0,58910.0,2.30974091]
[1724831352782,0.34267605,58911.0,58910.0,2.30974091]
[1724831353373,0.33934,58938.0,58927.0,0.339399]
[1724831353374,0.185,58937.0,58927.0,0.339399]
[1724831353588,0.185,58937.0,58932.0,0.339373]
[1724831353753,0.00537609,58936.0,58930.0,0.339384]
[1724831353957,0.51441609,58936.0,58933.0,0.169683]
[1724831354159,0.50904,58936.0,58934.0,0.023]
[1724831354368,0.00537609,58935.0,58934.0,0.023]
[1724831354572,0.51441609,58935.0,58934.0,0.023]
[1724831355236,0.51441609,58935.0,58934.0,0.532043]
[1724831355435,0.51441609,58935.0,58934.0,1.567005]
[1724831355571,0.51441609,58935.0,58934.0,1.906367]
[1724831355951,0.50904,58935.0,58934.0,1.906367]
[1724831356337,0.51412542,58935.0,58934.0,1.906367]
[1724831359837,0.51412542,58935.0,58934.0,0.100817]
[1724831360052,0.70534562,58935.0,58934.0,0.000817]
[1724831360276,1.22910162,58935.0,58934.0,0.000817]
[1724831360708,1.20755942,58935.0,58934.0,0.000817]
[1724831361422,1.54691542,58935.0,58934.0,0.000817]
[1724831362282,1.88627142,58935.0,58934.0,0.000817]
[1724831363395,1.88627142,58935.0,58916.0,0.339463]
[1724831363396,0.339419,58925.0,58914.0,0.4042]
[1724831363612,0.169722,58920.0,58917.0,0.50540786]
[1724831363823,0.169722,58920.0,58915.0,0.269734]
[1724831363824,0.169722,58920.0,58918.0,0.1]
[1724831364036,0.339438,58921.0,58914.0,0.4042]
[1724831364235,0.169725,58919.0,58915.0,0.169734]
[1724831364468,0.51490779,58918.0,58916.0,0.169732]
[1724831364888,0.51490779,58918.0,58917.0,0.16973]
[1724831365166,0.51490779,58918.0,58917.0,1.27585]
[1724831365382,0.54152189,58918.0,58917.0,1.89891]
[1724831365603,0.5356541,58918.0,58917.0,1.89891]
[1724831365830,0.54152189,58918.0,58917.0,1.89891]
[1724831366263,0.54152189,58918.0,58917.0,1.966959]
[1724831367795,0.51490779,58918.0,58917.0,1.966959]
[1724831368075,0.51490779,58918.0,58917.0,2.311419]
[1724831368272,0.50904,58918.0,58917.0,2.311419]
[1724831371750,0.50904,58918.0,58917.0,2.306419]
[1724831372197,0.40904,58918.0,58917.0,1.943959]
[1724831372405,0.40904,58918.0,58917.0,1.760359]
[1724831372618,0.43565168,58918.0,58917.0,1.760359]
[1724831373671,0.43565168,58918.0,58917.0,1.783359]
[1724831374961,0.43565168,58918.0,58917.0,0.26973]
[1724831375448,0.44150734,58918.0,58917.0,0.1]
[1724831375907,0.61123434,58918.0,58917.0,0.1]
[1724831376132,0.61123434,58918.0,58916.0,0.28901618]
[1724831376133,0.44150734,58918.0,58912.0,0.169743]
[1724831376347,0.44150734,58918.0,58911.0,0.000818]
[1724831376348,0.1899,58917.0,58911.0,0.000818]
[1724831376552,0.40904,58916.0,58911.0,0.170564]
[1724831376769,0.41490635,58916.0,58911.0,0.34031]
[1724831377002,0.41490635,58916.0,58915.0,0.509208]
[1724831377204,0.41490635,58916.0,58915.0,0.169736]
[1724831377425,0.41490635,58916.0,58915.0,0.891408]
[1724831377637,0.41490635,58916.0,58915.0,1.23088]
[1724831377842,0.41490635,58916.0,58915.0,1.25388]
[1724831378262,0.339432,58922.0,58917.0,0.28901618]
[1724831378471,0.339432,58922.0,58918.0,0.023]
[1724831378684,0.16972,58921.0,58918.0,0.023]
[1724831378900,0.169721,58920.0,58918.0,0.023]
[1724831379104,0.169724,58919.0,58918.0,0.023]
[1724831379748,0.509173,58919.0,58918.0,0.023]
[1724831380396,0.16974,58914.0,58911.0,0.28983418]
[1724831380622,0.339467,58916.0,58913.0,0.023]
[1724831380831,0.169738,58914.0,58913.0,0.023]
[1724831381041,0.169733,58916.0,58912.0,0.023]
[1724831381711,0.509182,58918.0,58912.0,0.023]
[1724831381931,0.339454,58918.0,58912.0,0.023]
[1724831382160,0.169734,58916.0,58912.0,0.192744]
[1724831382382,0.169734,58916.0,58912.0,0.023]
[1724831383076,0.169737,58915.0,58912.0,0.023]
[1724831383313,0.169737,58915.0,58911.0,0.28983418]
[1724831383314,0.359341,58913.0,58911.0,0.000818]
[1724831383552,0.9541671,58912.0,58911.0,0.000818]
[1724831383769,1.2936561,58912.0,58911.0,0.000818]
[1724831384228,1.68305751,58912.0,58911.0,0.000818]
[1724831384455,1.8336451,58912.0,58911.0,0.000818]
[1724831384670,2.56870168,58912.0,58911.0,0.000818]
[1724831384885,2.6934827,58912.0,58911.0,0.000818]
[1724831385511,2.59532575,58912.0,58911.0,0.000818]
[1724831385726,2.60056357,58912.0,58911.0,0.000818]
[1724831385945,2.59747086,58912.0,58911.0,0.000818]
[1724831386366,2.59247086,58912.0,58911.0,0.000818]
[1724831386578,2.40858703,58912.0,58911.0,0.000818]
[1724831386828,2.33381289,58912.0,58911.0,0.000818]
[1724831387500,2.40856457,58912.0,58911.0,0.000818]
[1724831387717,2.55785939,58912.0,58911.0,0.000818]
[1724831387939,2.72641103,58912.0,58911.0,0.000818]
[1724831388191,2.72641103,58912.0,58910.0,0.07082041]
[1724831388192,1.188232,58911.0,58910.0,0.07082041]
[1724831388410,2.02169976,58911.0,58910.0,0.07082041]
[1724831388632,2.02687428,58911.0,58910.0,0.07082041]
[1724831388852,1.99713967,58911.0,58910.0,0.07082041]
[1724831389073,2.69702232,58911.0,58910.0,0.07082041]
[1724831390850,2.94183467,58911.0,58910.0,0.07082041]
[1724831391739,3.0663529,58911.0,58910.0,0.07082041]
[1724831392617,2.94183467,58911.0,58910.0,0.07082041]
[1724831393513,3.04135968,58911.0,58910.0,0.07082041]
[1724831395544,2.94183467,58911.0,58910.0,0.07082041]
[1724831395992,2.94183467,58911.0,58908.0,0.00818]
[1724831395993,3.2521014,58911.0,58908.0,0.00818]
[1724831396222,2.472783,58909.0,58908.0,0.00818]
[1724831396431,3.20656811,58909.0,58908.0,0.00818]
[1724831396638,3.33662723,58909.0,58908.0,0.00818]
[1724831397087,3.212109,58909.0,58908.0,0.00818]
[1724831397331,3.38066064,58909.0,58908.0,0.00818]
[1724831397528,3.48066064,58909.0,58908.0,0.00818]
[1724831397745,4.18066064,58909.0,58908.0,0.00818]
[1724831398174,1.922907,58904.0,58903.0,0.00818]
[1724831398429,2.79429864,58904.0,58903.0,0.00818]
[1724831398873,2.79983953,58904.0,58903.0,0.00818]
[1724831399068,2.31838123,58904.0,58903.0,0.00818]
[1724831400265,2.65791623,58904.0,58903.0,0.00818]
[1724831400717,2.65791623,58904.0,58903.0,0.00808]
[1724831400718,0.54140923,58904.0,58903.0,0.00808]
[1724831400943,1.39024623,58904.0,58903.0,0.39698]
[1724831401200,1.86880585,58904.0,58903.0,0.00748]
[1724831401666,1.86880585,58904.0,58903.0,0.00728]
[1724831401907,1.86880585,58904.0,58903.0,0.00678]
[1724831402166,2.46760585,58904.0,58903.0,0.00678]
[1724831402638,2.46760585,58904.0,58900.0,0.0001]
[1724831402639,1.188432,58901.0,58900.0,0.0001]
[1724831402859,1.188432,58901.0,58890.0,0.401]
[1724831402860,0.169805,58891.0,58890.0,0.27852051]
[1724831403091,0.52506931,58891.0,58890.0,0.64103651]
[1724831403339,0.52506931,58891.0,58890.0,1.68767651]
[1724831403340,0.53021442,58891.0,58890.0,1.68767651]
[1724831403563,0.53021442,58891.0,58890.0,1.44806051]
[1724831404547,0.53021442,58891.0,58890.0,0.59902051]
[1724831404783,0.53021442,58891.0,58890.0,0.76882851]
[1724831405070,0.55684006,58891.0,58890.0,1.44806051]
[1724831406473,0.55684006,58891.0,58890.0,0.59902051]
[1724831406724,0.55684006,58891.0,58890.0,0.76882851]
[1724831407421,0.55684006,58891.0,58890.0,0.59902051]
[1724831407662,0.61252407,58891.0,58890.0,0.59902051]
[1724831407914,1.12333817,58891.0,58890.0,0.026]
[1724831409632,1.43632253,58891.0,58890.0,0.026]
[1724831409862,1.63002253,58891.0,58890.0,0.026]
[1724831410091,1.63002253,58891.0,58890.0,0.023]
[1724831410322,0.509424,58890.0,58889.0,0.023]
[1724831410564,1.03463749,58890.0,58889.0,0.023]
[1724831410793,0.52521349,58890.0,58889.0,0.5800606]
[1724831411005,0.52521349,58890.0,58889.0,1.4519046]
[1724831411219,0.5317577,58890.0,58889.0,1.4519046]
[1724831412115,0.5317577,58890.0,58889.0,1.1122826]
[1724831413074,0.5583853,58890.0,58889.0,1.1122826]
[1724831413528,0.5583853,58890.0,58889.0,0.7726606]
[1724831413971,0.6055007,58890.0,58889.0,0.4102496]
[1724831414226,0.6055007,58890.0,58888.0,0.00818]
[1724831414227,0.509433,58889.0,58888.0,0.00818]
[1724831414441,1.03471858,58889.0,58888.0,0.00818]
[1724831415109,1.04126279,58889.0,58888.0,0.00818]
[1724831415328,1.18672367,58889.0,58888.0,0.00818]
[1724831415770,1.18672367,58889.0,58888.0,0.03118]
[1724831416210,1.18672367,58889.0,58888.0,0.00818]
[1724831416706,1.52634567,58889.0,58888.0,0.00818]
[1724831416920,1.52934567,58889.0,58888.0,0.00818]
[1724831417385,1.52934567,58889.0,58885.0,0.00112]
[1724831417386,0.849097,58886.0,58885.0,0.00112]
[1724831417606,2.62959034,58886.0,58885.0,0.00112]
[1724831417843,2.50515855,58886.0,58885.0,0.00112]
[1724831418085,2.85134176,58886.0,58885.0,0.00112]
[1724831418322,2.85634176,58886.0,58885.0,0.00112]
[1724831418549,2.85634176,58886.0,58884.0,0.28901618]
[1724831418550,1.08093921,58886.0,58884.0,0.28901618]
[1724831418764,0.52608932,58885.0,58884.0,0.28901618]
[1724831419001,0.52586232,58885.0,58884.0,0.28901618]
[1724831419249,0.86550732,58885.0,58884.0,0.28901618]
[1724831419495,0.53236653,58885.0,58884.0,1.06494118]
[1724831419735,0.53236653,58885.0,58884.0,0.6061]
[1724831419961,0.53236653,58885.0,58884.0,1.42759118]
[1724831420187,0.52582232,58885.0,58884.0,1.42759118]
[1724831420417,0.52582232,58885.0,58884.0,0.91811618]
[1724831420651,0.52582232,58885.0,58884.0,1.08794118]
[1724831420652,0.53236653,58885.0,58884.0,1.08794118]
[1724831420861,0.53836653,58885.0,58884.0,1.08894118]
[1724831421283,0.53236653,58885.0,58884.0,1.08794118]
[1724831421705,0.53436653,58885.0,58884.0,1.42763118]
[1724831422822,0.53236653,58885.0,58884.0,1.76728118]
[1724831423289,0.52782232,58885.0,58884.0,1.76728118]
[1724831423503,0.53492581,58885.0,58884.0,1.76728118]
[1724831423719,0.53292581,58885.0,58884.0,1.76728118]
[1724831423950,0.53292581,58885.0,58884.0,1.76928118]